fUST/lending_fUST_20240430
["ID","MTS","AMOUNT","RATE_DAILY","PERIOD"]
[324946255,1714457455942,-500.0,0.00032602,2]
[324946256,1714457455951,-500.0,0.00032602,2]
[324946257,1714457455960,-627.8913676,0.00032602,2]
[324946258,1714457455970,-500.0,0.00032602,2]
[324946259,1714457455978,-360.43850052,0.00032602,2]
[324946260,1714457455988,-500.0,0.00032602,2]
[324946261,1714457455997,-500.0,0.00032602,2]
[324946262,1714457456007,-500.0,0.00032602,2]
[324946263,1714457456016,-500.0,0.00032602,2]
[324946264,1714457456025,-1006.99,0.00032602,2]
[324946265,1714457456035,-500.0,0.00032602,2]
[324946266,1714457456044,-500.0,0.00032602,2]
[324946267,1714457456053,-500.0,0.00032602,2]
[324946268,1714457456063,-159.048063,0.00032602,2]
[324946269,1714457456072,-500.0,0.00032602,2]
[324946270,1714457456081,-159.048063,0.00032602,2]
[324946271,1714457456091,-500.0,0.00032602,2]
[324946272,1714457456100,-500.0,0.00032602,2]
[324946273,1714457456110,-559.33,0.00032602,2]
[324946274,1714457456119,-500.0,0.00032602,2]
[324946275,1714457456128,-509.77,0.00032602,2]
[324946276,1714457456137,-240.260412,0.00032602,2]
[324946277,1714457456147,-500.0,0.00032602,2]
[324946278,1714457456156,-500.0,0.00032602,2]
[324946279,1714457456165,-240.260412,0.00032602,2]
[324946280,1714457456174,-500.0,0.00032602,2]
[324946281,1714457456183,-728.48,0.00032602,2]
[324946282,1714457456193,-638.59,0.00032602,2]
[324946283,1714457456202,-890.43,0.00032602,2]
[324946284,1714457456212,-500.0,0.00032602,2]
[324946285,1714457456221,-500.0,0.00032602,2]
[324946286,1714457456231,-500.0,0.00032602,2]
[324946287,1714457456240,-500.0,0.00032602,2]
[324946288,1714457456250,-500.0,0.00032602,2]
[324946289,1714457456259,-500.0,0.00032602,2]
[324946290,1714457456268,-500.0,0.00032602,2]
[324946291,1714457456278,-672.86,0.00032602,2]
[324946292,1714457456288,-500.0,0.00032602,2]
[324946293,1714457456298,-500.0,0.00032602,2]
[324946294,1714457456308,-500.0,0.00032602,2]
[324946295,1714457456317,-645.5,0.00032602,2]
[324946296,1714457456326,-720.2,0.00032602,2]
[324946297,1714457456336,-500.0,0.00032602,2]
[324946298,1714457456345,-500.0,0.00032602,2]
[324946299,1714457456356,-500.0,0.00032602,2]
[324946300,1714457456369,-500.0,0.00032602,2]
[324946301,1714457456378,-500.0,0.00032602,2]
[324946302,1714457456387,-500.0,0.00032602,2]
[324946303,1714457456396,-500.0,0.00032602,2]
[324946304,1714457456407,-500.0,0.00032602,2]
[324946305,1714457456416,-503.98,0.00032602,2]
[324946306,1714457456425,-500.0,0.00032602,2]
[324946307,1714457456434,-500.0,0.00032602,2]
[324946308,1714457456443,-500.0,0.00032602,2]
[324946309,1714457456453,-500.0,0.00032602,2]
[324946310,1714457456463,-500.0,0.00032602,2]
[324946311,1714457456472,-151.0,0.00032602,2]
[324946312,1714457456481,-500.0,0.00032602,2]
[324946313,1714457456490,-652.87,0.00032602,2]
[324946314,1714457456500,-500.0,0.00032602,2]
[324946315,1714457456509,-893.45,0.00032602,2]
[324946316,1714457456518,-630.12,0.00032602,2]
[324946317,1714457456527,-500.0,0.00032602,2]
[324946318,1714457456537,-500.0,0.00032602,2]
[324946319,1714457456546,-500.0,0.00032602,2]
[324946320,1714457456555,-245.26198561,0.00032602,2]
[324946321,1714457456564,-500.0,0.00032602,2]
[324946322,1714457456573,-500.0,0.00032602,2]
[324946323,1714457456583,-500.0,0.00032602,2]
[324946324,1714457456592,-500.0,0.00032602,2]
[324946325,1714457456602,-500.0,0.00032602,2]
[324946326,1714457456611,-890.42,0.00032602,2]
[324946327,1714457456620,-500.0,0.00032602,2]
[324946328,1714457456629,-500.0,0.00032602,2]
[324946329,1714457456638,-502.48367115,0.00032602,2]
[324946330,1714457456647,-500.0,0.00032602,2]
[324946331,1714457456656,-500.0,0.00032602,2]
[324946332,1714457456665,-500.0,0.00032602,2]
[324946333,1714457456674,-892.37,0.00032602,2]
[324946334,1714457456684,-500.0,0.00032602,2]
[324946335,1714457456693,-672.287224,0.00032602,2]
[324946336,1714457456702,-151.0,0.00032602,2]
[324946337,1714457456711,-672.287224,0.00032602,2]
[324946338,1714457456721,-571.67,0.00032602,2]
[324946339,1714457456730,-657.48,0.00032602,2]
[324946340,1714457456740,-728.25,0.00032602,2]
[324946341,1714457456749,-337.60044881,0.00032602,2]
[324946342,1714457456759,-639.64,0.00032602,2]
[324946343,1714457456768,-445.062086,0.00032602,2]
[324946344,1714457456778,-500.0,0.00032602,2]
[324946345,1714457456787,-500.0,0.00032602,2]
[324946346,1714457456796,-565.58,0.00032602,2]
[324946347,1714457456805,-445.062086,0.00032602,2]
[324946348,1714457456814,-158.199207,0.00032602,2]
[324946349,1714457456823,-500.0,0.00032602,2]
[324946350,1714457456832,-500.0,0.00032602,2]
[324946351,1714457456841,-500.0,0.00032602,2]
[324946352,1714457456851,-512.91,0.00032602,2]
[324946353,1714457456860,-555.04,0.00032602,2]
[324946354,1714457456869,-500.0,0.00032602,2]
[324946355,1714457456878,-986.08364,0.00032602,2]
[324946356,1714457456887,-707.6,0.00032602,2]
[324946357,1714457456896,-986.08364,0.00032602,2]
[324946358,1714457456906,-500.0,0.00032602,2]
[324946359,1714457456915,-500.0,0.00032602,2]
[324946360,1714457456924,-500.0,0.00032602,2]
[324946361,1714457456934,-407.86654599,0.00032602,2]
[324946362,1714457456943,-539.55,0.00032602,2]
[324946363,1714457456952,-500.0,0.00032602,2]
[324946364,1714457456961,-500.0,0.00032602,2]
[324946365,1714457456970,-500.0,0.00032602,2]
[324946366,1714457456979,-500.0,0.00032602,2]
[324946367,1714457456988,-500.0,0.00032602,2]
[324946368,1714457456997,-500.0,0.00032602,2]
[324946369,1714457457006,-500.0,0.00032602,2]
[324946370,1714457457015,-500.0,0.00032602,2]
[324946371,1714457457024,-500.0,0.00032602,2]
[324946372,1714457457034,-820.95,0.00032602,2]
[324946373,1714457457043,-821.44,0.00032602,2]
[324946374,1714457457052,-685.27,0.00032602,2]
[324946375,1714457457062,-500.0,0.00032602,2]
[324946376,1714457457071,-500.0,0.00032602,2]
[324946377,1714457457080,-500.0,0.00032602,2]
[324946378,1714457457089,-500.0,0.00032602,2]
[324946379,1714457457098,-537.134986,0.00032602,2]
[324946380,1714457457107,-500.0,0.00032602,2]
[324946381,1714457457116,-151.0,0.00032602,2]
[324946382,1714457457125,-537.134986,0.00032602,2]
[324946383,1714457457134,-928.29,0.00032602,2]
[324946384,1714457457143,-787.88,0.00032602,2]
[324946385,1714457457153,-554.17,0.00032602,2]
[324946386,1714457457162,-546.039288,0.00032602,2]
[324946387,1714457457171,-500.0,0.00032602,2]
[324946388,1714457457180,-546.039288,0.00032602,2]
[324946389,1714457457189,-1095.77,0.00032602,2]
[324946390,1714457457198,-500.0,0.00032602,2]
[324946391,1714457457207,-500.0,0.00032602,2]
[324946392,1714457457217,-985.67,0.00032602,2]
[324946393,1714457457226,-500.0,0.00032602,2]
[324946394,1714457457235,-394.46612082,0.00032602,2]
[324946395,1714457457244,-500.0,0.00032602,2]
[324946396,1714457457254,-500.0,0.00032602,2]
[324946397,1714457457263,-500.0,0.00032602,2]
[324946398,1714457457272,-500.0,0.00032602,2]
[324946399,1714457457280,-228.325206,0.00032602,2]
[324946400,1714457457290,-500.0,0.00032602,2]
[324946401,1714457457299,-500.0,0.00032602,2]
[324946402,1714457457308,-228.325206,0.00032602,2]
[324946403,1714457457318,-500.0,0.00032602,2]
[324946404,1714457457327,-500.0,0.00032602,2]
[324946405,1714457457336,-577.75,0.00032602,2]
[324946406,1714457457346,-500.0,0.00032602,2]
[324946407,1714457457355,-248.875974,0.00032602,2]
[324946408,1714457457365,-248.875974,0.00032602,2]
[324946409,1714457457375,-500.0,0.00032602,2]
[324946410,1714457457384,-248.875974,0.00032602,2]
[324946411,1714457457393,-248.875982,0.00032602,2]
[324946412,1714457457404,-500.0,0.00032602,2]
[324946413,1714457457413,-500.0,0.00032602,2]
[324946414,1714457457423,-500.0,0.00032602,2]
[324946415,1714457457432,-500.0,0.00032602,2]
[324946416,1714457457443,-654.2,0.00032602,2]
[324946417,1714457457452,-1781.610281,0.00032602,2]
[324946418,1714457457461,-1781.610281,0.00032602,2]
[324946419,1714457457471,-500.0,0.00032602,2]
[324946420,1714457457479,-500.0,0.00032602,2]
[324946421,1714457457488,-1781.610281,0.00032602,2]
[324946422,1714457457497,-1781.61028,0.00032602,2]
[324946423,1714457457507,-500.0,0.00032602,2]
[324946424,1714457457516,-500.0,0.00032602,2]
[324946425,1714457457524,-500.0,0.00032602,2]
[324946426,1714457457631,-500.0,0.00032602,2]
[324946427,1714457457642,-500.0,0.00032602,2]
[324946428,1714457457651,-530.17,0.00032602,2]
[324946429,1714457457660,-476.00827288,0.00032602,2]
[324946430,1714457457669,-556.7,0.00032602,2]
[324946431,1714457457679,-611.4,0.00032602,2]
[324946432,1714457457688,-500.0,0.00032602,2]
[324946433,1714457457697,-500.0,0.00032602,2]
[324946434,1714457457706,-556.41,0.00032602,2]
[324946435,1714457457715,-500.0,0.00032602,2]
[324946436,1714457457724,-500.0,0.00032602,2]
[324946437,1714457457733,-500.0,0.00032602,2]
[324946438,1714457457743,-500.0,0.00032602,2]
[324946439,1714457457752,-786.77,0.00032602,2]
[324946440,1714457457761,-725.92,0.00032602,2]
[324946441,1714457457771,-1136.93,0.00032602,2]
[324946442,1714457457780,-544.02,0.00032602,2]
[324946443,1714457457790,-500.0,0.00032602,2]
[324946444,1714457457800,-171.57381028,0.00032602,2]
[324946445,1714457457809,-1279.478513,0.00032602,2]
[324946446,1714457457819,-506.78,0.00032602,2]
[324946447,1714457457828,-500.0,0.00032602,2]
[324946448,1714457457837,-563.08117414,0.00032602,2]
[324946449,1714457457846,-500.0,0.00032602,2]
[324946450,1714457457855,-1279.478513,0.00032602,2]
[324946451,1714457457864,-500.0,0.00032602,2]
[324946452,1714457457873,-500.0,0.00032602,2]
[324946453,1714457457882,-545.68,0.00032602,2]
[324946454,1714457457892,-151.0,0.00032602,2]
[324946455,1714457457901,-527.95,0.00032602,2]
[324946456,1714457457910,-714.47,0.00032602,2]
[324946457,1714457457919,-500.0,0.00032602,2]
[324946458,1714457457928,-151.0,0.00032602,2]
[324946459,1714457457937,-290.819521,0.00032602,2]
[324946460,1714457457947,-7971.4,0.00032602,2]
[324946461,1714457457956,-500.0,0.00032602,2]
[324946462,1714457457965,-500.0,0.00032602,2]
[324946463,1714457457974,-500.0,0.00032602,2]
[324946464,1714457457983,-1524.12,0.00032602,2]
[324946465,1714457457992,-500.0,0.00032602,2]
[324946466,1714457458001,-500.0,0.00032602,2]
[324946467,1714457458010,-153.8921486,0.00032751,7]
[324946468,1714457458019,-544.61577018,0.00032775,7]
[324946469,1714457458029,-500.0,0.000328,60]
[324946470,1714457458038,-500.0,0.00032876,2]
[324946471,1714457458047,-500.0,0.00032876,2]
[324946472,1714457458056,-573.99,0.00032876,2]
[324946473,1714457458065,-500.0,0.00032876,2]
[324946474,1714457458075,-500.0,0.00032876,2]
[324946475,1714457458083,-502.78900828,0.00032876,2]
[324946476,1714457458092,-500.0,0.00032876,2]
[324946477,1714457458102,-500.0,0.00032876,2]
[324946478,1714457458111,-500.0,0.00032876,2]
[324946479,1714457458120,-500.0,0.00032876,2]
[324946480,1714457458129,-899.84,0.00032876,2]
[324946481,1714457458138,-384.00429765,0.00032876,2]
[324946482,1714457458147,-500.0,0.00032876,2]
[324946483,1714457458156,-500.0,0.00032876,2]
[324946484,1714457458166,-500.0,0.00032876,2]
[324946485,1714457458175,-500.0,0.00032876,14]
[324946486,1714457458184,-567.30408737,0.00032876,14]
[324946487,1714457458193,-500.0,0.00032876,2]
[324946488,1714457458203,-500.0,0.00032876,2]
[324946489,1714457458213,-500.0,0.00032876,2]
[324946490,1714457458222,-500.0,0.00032876,2]
[324946491,1714457458231,-500.0,0.00032876,2]
[324946492,1714457458241,-500.0,0.00032876,2]
[324946493,1714457458250,-513.6,0.00032876,2]
[324946494,1714457458259,-605.54,0.00032876,2]
[324946495,1714457458268,-532.84,0.00032876,2]
[324946496,1714457458277,-501.87159403,0.00032876,2]
[324946497,1714457458286,-505.64,0.00032876,2]
[324946498,1714457458295,-603.01,0.00032876,2]
[324946499,1714457458304,-500.0,0.00032876,2]
[324946500,1714457458313,-500.0,0.00032876,2]
[324946501,1714457458323,-302.35166721,0.00032876,2]
[324946502,1714457458332,-500.0,0.00032876,2]
[324946503,1714457458341,-500.0,0.00032876,2]
[324946504,1714457458350,-500.0,0.00032876,2]
[324946505,1714457458364,-500.0,0.00032876,2]
[324946506,1714457458373,-500.0,0.00032876,2]
[324946507,1714457458382,-500.0,0.00032876,2]
[324946508,1714457458391,-500.0,0.00032876,2]
[324946509,1714457458401,-500.0,0.00032876,2]
[324946510,1714457458410,-500.0,0.00032876,2]
[324946511,1714457458419,-500.0,0.00032876,2]
[324946512,1714457458429,-500.0,0.00032876,2]
[324946513,1714457458439,-518.31,0.00032876,2]
[324946514,1714457458448,-500.0,0.00032876,2]
[324946515,1714457458457,-500.0,0.00032876,2]
[324946516,1714457458466,-173.81823423,0.00032876,2]
[324946517,1714457458475,-500.0,0.00032876,2]
[324946518,1714457458484,-500.0,0.00032876,2]
[324946519,1714457458494,-500.0,0.00032876,2]
[324946520,1714457458502,-500.0,0.00032876,2]
[324946521,1714457458511,-500.0,0.00032876,2]
[324946522,1714457458520,-500.0,0.00032876,2]
[324946523,1714457458530,-500.0,0.00032876,2]
[324946524,1714457458539,-500.0,0.00032876,2]
[324946525,1714457458548,-500.0,0.00032876,30]
[324946526,1714457458557,-500.0,0.00032876,2]
[324946527,1714457458566,-799.99,0.00032876,2]
[324946528,1714457458575,-500.0,0.00032876,2]
[324946529,1714457458584,-500.0,0.00032876,2]
[324946530,1714457458593,-874.16,0.00032876,2]
[324946531,1714457458602,-500.0,0.00032876,2]
[324946532,1714457458611,-500.0,0.00032876,2]
[324946533,1714457458620,-974.74,0.00032876,2]
[324946534,1714457458631,-151.0,0.00032876,2]
[324946535,1714457458639,-500.0,0.00032876,2]
[324946536,1714457458649,-381.74991982,0.00032876,2]
[324946537,1714457458658,-764.82,0.00032876,2]
[324946538,1714457458667,-500.0,0.00032876,2]
[324946539,1714457458676,-500.0,0.00032876,2]
[324946540,1714457458685,-500.0,0.00032876,2]
[324946541,1714457458694,-1008.03,0.00032876,2]
[324946542,1714457458703,-500.0,0.00032876,2]
[324946543,1714457458713,-599.82,0.00032876,2]
[324946544,1714457458722,-871.87,0.00032876,2]
[324946545,1714457458731,-500.0,0.00032876,2]
[324946546,1714457458740,-513.93,0.00032876,2]
[324946547,1714457458749,-500.0,0.00032876,2]
[324946548,1714457458758,-515.37010951,0.00032876,2]
[324946549,1714457458767,-274.918776,0.00032876,2]
[324946550,1714457458777,-500.0,0.00032876,2]
[324946551,1714457458786,-500.0,0.00032876,2]
[324946552,1714457458795,-716.63,0.00032876,2]
[324946553,1714457458804,-500.0,0.00032876,2]
[324946554,1714457458813,-300.0,0.00032876,2]
[324946555,1714457458822,-500.0,0.00032876,2]
[324946556,1714457458831,-500.0,0.00032876,2]
[324946557,1714457458840,-500.0,0.00032876,2]
[324946558,1714457458849,-500.0,0.00032876,2]
[324946559,1714457458858,-642.16570087,0.00032876,2]
[324946560,1714457458867,-500.0,0.00032876,2]
[324946561,1714457458876,-500.0,0.00032876,2]
[324946562,1714457458885,-500.0,0.00032876,2]
[324946563,1714457458893,-1006.99,0.00032876,2]
[324946564,1714457458903,-500.0,0.00032876,2]
[324946565,1714457458912,-500.0,0.00032876,2]
[324946566,1714457458921,-500.0,0.00032876,2]
[324946567,1714457458930,-159.048063,0.00032876,2]
[324946568,1714457458939,-500.0,0.00032876,2]
[324946569,1714457458948,-159.048063,0.00032876,2]
[324946570,1714457458956,-500.0,0.00032876,2]
[324946571,1714457458965,-500.0,0.00032876,2]
[324946572,1714457458974,-559.33,0.00032876,2]
[324946573,1714457458983,-500.0,0.00032876,2]
[324946574,1714457458992,-509.77,0.00032876,2]
[324946575,1714457459001,-240.260412,0.00032876,2]
[324946576,1714457459010,-500.0,0.00032876,2]
[324946577,1714457459019,-500.0,0.00032876,2]
[324946578,1714457459028,-240.260412,0.00032876,2]
[324946579,1714457459037,-500.0,0.00032876,2]
[324946580,1714457459046,-728.48,0.00032876,2]
[324946581,1714457459055,-638.59,0.00032876,2]
[324946582,1714457459065,-890.43,0.00032876,2]
[324946583,1714457459074,-500.0,0.00032876,2]
[324946584,1714457459083,-500.0,0.00032876,2]
[324946585,1714457459092,-500.0,0.00032876,2]
[324946586,1714457459101,-500.0,0.00032876,2]
[324946587,1714457459111,-500.0,0.00032876,2]
[324946588,1714457459120,-500.0,0.00032876,2]
[324946589,1714457459130,-500.0,0.00032876,2]
[324946590,1714457459139,-672.86,0.00032876,2]
[324946591,1714457459148,-500.0,0.00032876,2]
[324946592,1714457459157,-503.58700993,0.00032876,2]
[324946593,1714457459167,-500.0,0.00032876,2]
[324946594,1714457459176,-645.5,0.00032876,2]
[324946595,1714457459186,-720.2,0.00032876,2]
[324946596,1714457459195,-500.0,0.00032876,2]
[324946597,1714457459204,-500.0,0.00032876,2]
[324946598,1714457459213,-500.0,0.00032876,2]
[324946599,1714457459222,-500.0,0.00032876,2]
[324946600,1714457459231,-205.69891003,0.00032876,2]
[324946601,1714457459240,-500.0,0.00032876,2]
[324946602,1714457459249,-453.27455973,0.00032876,2]
[324946603,1714457459258,-500.0,0.00032876,2]
[324946604,1714457459267,-503.98,0.00032876,2]
[324946605,1714457459276,-500.0,0.00032876,2]
[324946606,1714457459285,-500.0,0.00032876,2]
[324946607,1714457459296,-500.0,0.00032876,2]
[324946608,1714457459308,-500.0,0.00032876,2]
[324946609,1714457459318,-326.34223685,0.00032876,2]
[324946610,1714457459327,-151.0,0.00032876,2]
[324946611,1714457459335,-151.0,0.00032876,2]
[324946612,1714457459344,-500.0,0.00032876,2]
[324946613,1714457459354,-652.87,0.00032876,2]
[324946614,1714457459363,-500.0,0.00032876,2]
[324946615,1714457459377,-893.45,0.00032876,2]
[324946616,1714457459387,-630.12,0.00032876,2]
[324946617,1714457459396,-500.0,0.00032876,2]
[324946618,1714457459405,-500.0,0.00032876,2]
[324946619,1714457459414,-500.0,0.00032876,2]
[324946620,1714457459423,-500.0,0.00032876,2]
[324946621,1714457459432,-500.0,0.00032876,2]
[324946622,1714457459443,-500.0,0.00032876,2]
[324946623,1714457459452,-500.0,0.00032876,2]
[324946624,1714457459461,-497.89974434,0.00032876,2]
[324946625,1714457459470,-890.42,0.00032876,2]
[324946626,1714457459479,-500.0,0.00032876,2]
[324946627,1714457459488,-500.0,0.00032876,2]
[324946628,1714457459497,-500.0,0.00032876,2]
[324946629,1714457459506,-500.0,0.00032876,2]
[324946630,1714457459514,-500.0,0.00032876,2]
[324946631,1714457459523,-892.37,0.00032876,2]
[324946632,1714457459532,-500.0,0.00032876,2]
[324946633,1714457459542,-672.287224,0.00032876,2]
[324946634,1714457459551,-672.287224,0.00032876,2]
[324946635,1714457459560,-151.0,0.00032876,2]
[324946636,1714457459661,-151.0,0.00032876,2]
[324946637,1714457459672,-672.287224,0.00032876,2]
[324946638,1714457459681,-672.28721783,0.00032876,2]
[324946639,1714457459691,-571.67,0.00032876,2]
[324946640,1714457459700,-657.48,0.00032876,2]
[324946641,1714457459709,-728.25,0.00032876,2]
[324946642,1714457459718,-639.64,0.00032876,2]
[324946643,1714457459728,-445.062086,0.00032876,2]
[324946644,1714457459738,-445.062086,0.00032876,2]
[324946645,1714457459748,-500.0,0.00032876,2]
[324946646,1714457459757,-500.0,0.00032876,2]
[324946647,1714457459766,-565.58,0.00032876,2]
[324946648,1714457459776,-445.062086,0.00032876,2]
[324946649,1714457459785,-445.062095,0.00032876,2]
[324946650,1714457459795,-500.0,0.00032876,2]
[324946651,1714457459804,-500.0,0.00032876,2]
[324946652,1714457459813,-500.0,0.00032876,2]
[324946653,1714457459823,-512.91,0.00032876,2]
[324946654,1714457459831,-555.04,0.00032876,2]
[324946655,1714457459841,-500.0,0.00032876,2]
[324946656,1714457459850,-986.08364,0.00032876,2]
[324946657,1714457459859,-986.08364,0.00032876,2]
[324946658,1714457459869,-707.6,0.00032876,2]
[324946659,1714457459878,-500.0,0.00032876,2]
[324946660,1714457459887,-986.08364,0.00032876,2]
[324946661,1714457459896,-986.083645,0.00032876,2]
[324946662,1714457459905,-500.0,0.00032876,2]
[324946663,1714457459914,-500.0,0.00032876,2]
[324946664,1714457459923,-539.55,0.00032876,2]
[324946665,1714457459932,-500.0,0.00032876,2]
[324946666,1714457459940,-500.0,0.00032876,2]
[324946667,1714457459949,-500.0,0.00032876,2]
[324946668,1714457459958,-500.0,0.00032876,2]
[324946669,1714457459967,-500.0,0.00032876,2]
[324946670,1714457459976,-500.0,0.00032876,2]
[324946671,1714457459985,-500.0,0.00032876,2]
[324946672,1714457459994,-500.0,0.00032876,2]
[324946673,1714457460003,-500.0,0.00032876,2]
[324946674,1714457460012,-820.95,0.00032876,2]
[324946675,1714457460021,-821.44,0.00032876,2]
[324946676,1714457460030,-685.27,0.00032876,2]
[324946677,1714457460039,-500.0,0.00032876,2]
[324946678,1714457460048,-500.0,0.00032876,2]
[324946679,1714457460057,-500.0,0.00032876,2]
[324946680,1714457460066,-500.0,0.00032876,2]
[324946681,1714457460075,-537.134986,0.00032876,2]
[324946682,1714457460084,-500.0,0.00032876,2]
[324946683,1714457460093,-151.0,0.00032876,2]
[324946684,1714457460103,-537.134995,0.00032876,2]
[324946685,1714457460112,-928.29,0.00032876,2]
[324946686,1714457460122,-787.88,0.00032876,2]
[324946687,1714457460131,-554.17,0.00032876,2]
[324946688,1714457460140,-546.039288,0.00032876,2]
[324946689,1714457460149,-500.0,0.00032876,2]
[324946690,1714457460158,-546.039289,0.00032876,2]
[324946691,1714457460168,-1095.77,0.00032876,2]
[324946692,1714457460177,-500.0,0.00032876,2]
[324946693,1714457460186,-500.0,0.00032876,2]
[324946694,1714457460196,-985.67,0.00032876,2]
[324946695,1714457460205,-500.0,0.00032876,2]
[324946696,1714457460214,-500.0,0.00032876,2]
[324946697,1714457460224,-500.0,0.00032876,2]
[324946698,1714457460233,-500.0,0.00032876,2]
[324946699,1714457460242,-500.0,0.00032876,2]
[324946700,1714457460251,-228.325206,0.00032876,2]
[324946701,1714457460260,-500.0,0.00032876,2]
[324946702,1714457460270,-500.0,0.00032876,2]
[324946703,1714457460279,-228.325207,0.00032876,2]
[324946704,1714457460290,-500.0,0.00032876,2]
[324946705,1714457460300,-500.0,0.00032876,2]
[324946706,1714457460309,-577.75,0.00032876,2]
[324946707,1714457460319,-500.0,0.00032876,2]
[324946708,1714457460328,-500.0,0.00032876,2]
[324946709,1714457460337,-500.0,0.00032876,2]
[324946710,1714457460346,-500.0,0.00032876,2]
[324946711,1714457460355,-500.0,0.00032876,2]
[324946712,1714457460369,-375.79202182,0.00032876,2]
[324946713,1714457460378,-654.2,0.00032876,2]
[324946714,1714457460387,-500.0,0.00032876,2]
[324946715,1714457460396,-500.0,0.00032876,2]
[324946716,1714457460406,-500.0,0.00032876,2]
[324946717,1714457460415,-500.0,0.00032876,2]
[324946718,1714457460424,-500.0,0.00032876,2]
[324946719,1714457460434,-500.0,0.00032876,2]
[324946720,1714457460445,-513.33959173,0.00032876,2]
[324946721,1714457460455,-530.17,0.00032876,2]
[324946722,1714457460464,-556.7,0.00032876,2]
[324946723,1714457460473,-611.4,0.00032876,2]
[324946724,1714457460482,-500.0,0.00032876,2]
[324946725,1714457460492,-319.32606641,0.00032876,2]
[324946726,1714457460501,-556.41,0.00032876,2]
[324946727,1714457460510,-369.17686616,0.00032876,2]
[324946728,1714457460519,-500.0,0.00032876,2]
[324946729,1714457460528,-200.76339658,0.00032876,2]
[324946730,1714457460537,-611.68415699,0.00032876,2]
[324946731,1714457460547,-786.77,0.00032876,2]
[324946732,1714457460556,-725.92,0.00032876,2]
[324946733,1714457460566,-1136.93,0.00032876,2]
[324946734,1714457460575,-544.02,0.00032876,2]
[324946735,1714457460584,-500.0,0.00032876,2]
[324946736,1714457460594,-506.78,0.00032876,2]
[324946737,1714457460603,-500.0,0.00032876,2]
[324946738,1714457460611,-500.0,0.00032876,2]
[324946739,1714457460620,-500.0,0.00032876,2]
[324946740,1714457460630,-634.81599493,0.00032876,2]
[324946741,1714457460640,-545.68,0.00032876,2]
[324946742,1714457460651,-527.95,0.00032876,2]
[324946743,1714457460661,-500.0,0.00032876,2]
[324946744,1714457460671,-714.47,0.00032876,2]
[324946745,1714457460680,-7971.4,0.00032876,2]
[324946746,1714457460689,-500.0,0.00032876,2]
[324946747,1714457460698,-500.0,0.00032876,2]
[324946748,1714457460707,-500.0,0.00032876,2]
[324946749,1714457460716,-1524.12,0.00032876,2]
[324946750,1714457460725,-500.0,0.00032876,2]
[324946751,1714457460735,-500.0,0.00032876,2]
[324946752,1714457460744,-153.0,0.00032877,2]
[324946753,1714457460753,-153.0,0.00032877,2]
[324946754,1714457460762,-620.00000045,0.00032937,2]